Workbook

Sheet ΠΡΟΜΕΤΡΗΣΗ
B2: ΠΡΟΣΟΧΗ
B3: 1.ενεργοποιείστε τις επιλογές 2. αποθηκεύστε πάντα με δυνατότητα μακροεντολών 3. στις αριθμητικες πράξεις αντί για κόμμα χρησιμοποίηστε τελεία και 4. για να προσθέσετε γραμμή κάντε αντιγραφή άλλων αριθμ πράξεων
B6: ΕΡΓΟ: Εργασίες περίπτωσης ιβ «Εργασίες εξωτερικών χρωματισμών ή αντικατάσταση κιγκλιδωμάτων ή επισκευή επιχρισμάτων ή επισκευή όψεων με χρήση ικριωμάτων» της παρ 2 του άρθρου 29 του ν.4495/2017 ΕΡΓΟΔΟΤΗΣ: Κανα.....τάνιου Ελένη ΘΕΣΗ ΕΡΓΟΥ: ....-Ο.Τ 293 .....
C10: ΑΝΑΛΥΤΙΚΗ ΠΡΟΜΕΤΡΗΣΗ ΕΡΓΑΣΙΩΝ-ΕΝΣΗΜΑ ΙΚΑ πιν 3
B13: ΕΡΓΑΣΙΑ | C13: ΑΡΙΘΜΗΤΙΚΕΣ ΠΡΑΞΕΙΣ | D13: ΣΥΝΟΛΟ | E13: ΜΟΝΑΔΕΣ | F13: ΤΙΜΗ ΜΟΝΑΔΑΣ | G13: ΜΕΡΙΚΟΣ ΠΡΟΫΠΟΛΟΓΙΣΜΟΣ | H13: ΕΝΣΗΜΑ/ΜΟΝΑΔΑ | I13: ΕΝΣΗΜΑ | J13: ΦΑΣΗ ΕΡΓΟΥ
B14: 2.05 Καθαιρέσεις επιχρισμάτων | C14: κατ' αποκοπή | D14: 6 | E14: τ.μ | F14: 4.1 | G14: =D14*F14 -> 24.6 | H14: 0.09 | I14: =D14*H14 -> 0.54 | J14: 0.1
B15: 5.01 Ασβεστοτσιμεντοκονιαματα τριπτά | C15: κατ' αποκοπή | D15: 6 | E15: Τ.Μ | F15: 5.86 | G15: =F15*D15 -> 35.16 | H15: 0.04 | I15: =D15*H15 -> 0.24 | J15: 0.3
B16: 17.03 Πλαστικά επί τοίχου | C16: (1.71+7.59)*9.3+(0.76+3.7+1.2)*9.5+1.36*7+(1*6)+(4*3)+(1*3.6)+(1*6)+(9.66+1.36)*2.4/2 | D16: =evalmath(C16) -> 190.604 | E16: Τ.Μ | F16: 3.52 | G16: =F16*D16 -> 670.92608 | H16: 0.027 | I16: =D16*H16 -> 5.146308 | J16: 0.5
B17: 18.02 Ικριώματα | D17: =D16 -> 190.604 | E17: τ.μ | F17: 2.06 | G17: =F17*D17 -> 392.64424 | H17: 0.013 | I17: 2.477852 | J17: 0.6
B19: σύνολο
D20: ΟΛΙΚΟΣ ΠΡΟΫΠΟΛΟΓΙΣΜΟΣ | G20: =SUM(G15:G19) -> 1098.73032 | I20: =SUM(I15:I19) -> 7.86416
D24: 27/10/202.
D26: Ο ΣΥΝΤΑΞΑΣ ΜΗΧΑΝΙΚΟΣ
B29: *

Sheet ΠΡΟΥΠΟΛΟΓΙΣΜΟΣ
A2: ΕΡΓΟ: Εργασίες περίπτωσης ιβ «Εργασίες εξωτερικών χρωματισμών ή αντικατάσταση κιγκλιδωμάτων ή επισκευή επιχρισμάτων ή επισκευή όψεων με χρήση ικριωμάτων» της παρ 2 του άρθρου 29 του ν.4495/2017 ΕΡΓΟΔΟΤΗΣ: Κανα.....τάνιου Ελένη ΘΕΣΗ ΕΡΓΟΥ: ....-Ο.Τ 293 .....
A8: ΑΝΑΛΥΤΙΚΟΣ ΠΡΟΫΠΟΛΟΓΙΣΜΟΣ ΤΟΥ ΕΡΓΟΥ
G9: Ν 4495/17
A10: α/α ΕΡΓΑΣΙΑ | B10: ΜΟΝΑΔΑ | C10: ΠΟΣΟΤΗΤΑ | D10: ΤΙΜΗ ΜΟΝΑΔΟΣ € (Εγκ. 8/90) | E10: ΤΙΜΗ ΜΟΝΑΔΟΣ € (Παρ. Β) | F10: ΣΥΝΟΛΟ (Εγκύκλιος 8/90) | G10: ΣΥΝΟΛΟ (Παράρτημα Β)
A11: 1. Χωματουργικά
A12: 1.01 Γενικές εκσκαφές γαιώδεις | B12: μ3 | D12: ='[1]Σε ΔΡΧ'!D12/340.75 -> 1.614086574 | E12: 3.22 | F12: =IF(C12<=0," ",D12*C12) ->  | G12: =IF(C12<=0," ",E12*C12) -> 
A13: 1.02 Γενικές εκσκαφές ημιβραχώδεις | B13: μ3 | D13: ='[1]Σε ΔΡΧ'!D13/340.75 -> 1.614086574 | E13: 3.22 | F13: =IF(C13<=0," ",D13*C13) ->  | G13: =IF(C13<=0," ",E13*C13) -> 
A14: 1.03 Γενικές εκσκαφές βραχώδεις | B14: μ3 | D14: ='[1]Σε ΔΡΧ'!D14/340.75 -> 5.869405723 | E14: 11.74
A15: 1.04 Εκσκαφές θεμελίων γαιώδεις | B15: μ3 | D15: ='[1]Σε ΔΡΧ'!D15/340.75 -> 2.641232575 | E15: 5.28
A16: 1.05 Εκσκαφές θεμελίων ημιβραχώδεις | B16: μ3 | D16: ='[1]Σε ΔΡΧ'!D16/340.75 -> 2.641232575 | E16: 5.28
A17: 1.06 Εκσκαφές θεμελίων βραχώδεις | B17: μ3 | D17: ='[1]Σε ΔΡΧ'!D17/340.75 -> 2.641232575 | E17: 5.28
A18: 1.07 Επιχώσεις με προιόντα εκσκαφής | B18: μ3 | D18: ='[1]Σε ΔΡΧ'!D18/340.75 -> 0.5869405723 | E18: 1.18
A19: 1.08Ειδικές επιχώσεις (σκύρα κ.λ.π.) | B19: μ3 | D19: ='[1]Σε ΔΡΧ'!D19/340.75 -> 2.934702861 | E19: 5.86
A20: 1.09 Εκσκαφές ημιβραχώδεις με τα χέρια ή κομπρεσέρ (περιλαμβάνεται φόρτωση, μεταφορά κλπ.) | B20: μ4
A21: 1.10 Εκσκαφές βραχώδεις με τα χέρια ή κομπρεσέρ (περιλαμβάνεται φόρτωση, μεταφορά κλπ.) | B21: μ5
A22: 1.11 Επιχώσεις πάσης φύσεως με τα χέρια (περιλαμβάνεται φόρτωση, μεταφορά, διάστρωση, συμπύκνωση κλπ.) | B22: μ6
A23: ΣΥΝΟΛΟ ΧΩΜΑΤΟΥΡΓΙΚΑ | F23: =SUM(F12:F22) -> 0 | G23: =SUM(G12:G22) -> 0
A24: 2. Καθαιρέσεις
A25: 2.01 Καθαιρ. Πλινθοδ. με συνήθη κονίαμα | B25: μ3 | D25: ='[1]Σε ΔΡΧ'!D22/340.75 -> 5.869405723 | E25: 11.74 | F25: =IF(C25<=0," ",D25*C25) ->  | G25: =IF(C25<=0," ",E25*C25) -> 
A26: 2.02 Καθαιρ. Πλινθοδ. με ισχυρό κονίαμα | B26: μ3 | D26: ='[1]Σε ΔΡΧ'!D23/340.75 -> 7.336757153 | E26: 14.68 | G26: =IF(C26<=0," ",E26*C26) -> 
A27: 2.03 Καθαιρέσεις αόπλου σκυροδέματος | B27: μ3 | D27: ='[1]Σε ΔΡΧ'!D24/340.75 -> 20.54292003 | E27: 41.08
A28: 2.04 Καθαιρέσεις οπλισμένου σκυροδέματος | B28: μ3 | D28: ='[1]Σε ΔΡΧ'!D25/340.75 -> 32.28173147 | E28: 64.56
A29: 2.05 Καθαιρέσεις επιχρισμάτων | B29: μ2 | D29: ='[1]Σε ΔΡΧ'!D26/340.75 -> 2.054292003 | E29: 4.1
A30: 2.06 Καθαιρέσεις τοίχων δια την διαμόρφωση θυρών | B30: τεμάχιο | D30: ='[1]Σε ΔΡΧ'!D27/340.75 -> 7.336757153 | E30: 14.68
A31: 2.07 Καθαιρέσεις ξύλινων ή σιδηρών θυρών & παραθύρων | B31: μ2 | D31: ='[1]Σε ΔΡΧ'!D28/340.75 -> 4.402054292 | E31: 8.8
A32: 2.08 Αποξήλωση σκελετού στέγης πάσης φύσεως | B32: μ2 | E32: 1.5
A33: 2.09 Αποξήλωση υλικών επικάλυψης στέγης (κεραμίδια, πάνελ κτλ) | B33: μ2 | E33: 0.8
A34: 2.10 Αποξήλωση κιγκλιδωμάτων | B34: μ2 | E34: 0.8
A35: ΣΥΝΟΛΟ ΚΑΘΑΙΡΕΣΕΙΣ | F35: =SUM(F25:F34) -> 0 | G35: =SUM(G25:G34) -> 0
A36: 3. Σκυροδέματα - Μεταλλικός Σκελετός
A37: 3.01 Οπλισμένο σκυρόδεμα | B37: μ3 | D37: ='[1]Σε ΔΡΧ'!D31/340.75 -> 73.36757153 | E37: 146.74 | F37: =IF(C37<=0," ",D37*C37) ->  | G37: =IF(C37<=0," ",E37*C37) -> 
A38: 3.02 Ελαφρά οπλ. σκυρόδεμα (με πλέγμα) | B38: μ3 | D38: ='[1]Σε ΔΡΧ'!D32/340.75 -> 52.8246515 | E38: 105.64 | F38: =IF(C38<=0," ",D38*C38) ->  | G38: =IF(C38<=0," ",E38*C38) -> 
A39: 3.03 Ελαφρό Μπετόν | B39: μ3 | D39: ='[1]Σε ΔΡΧ'!D33/340.75 -> 35.21643434 | E39: 70.44
A40: 3.04 Άοπλο σκυρόδεμα δαπέδων | B40: μ2 | D40: ='[1]Σε ΔΡΧ'!D34/340.75 -> 2.934702861 | E40: 5.86
A41: 3.05 Εξισωτικές στρώσεις | B41: μ2 | D41: ='[1]Σε ΔΡΧ'!D35/340.75 -> 2.054292003 | E41: 4.1
A42: 3.06 Επιφάνειες εμφανούς σκυροδέματος | B42: μ2 | D42: ='[1]Σε ΔΡΧ'!D36/340.75 -> 2.934702861 | E42: 5.86
A43: 3.07 Σενάζ δρομικά | B43: μ./μήκους | D43: ='[1]Σε ΔΡΧ'!D37/340.75 -> 3.521643434 | E43: 7.04
A44: 3.08 Σενάζ μπατικά | B44: μ./μήκους | D44: ='[1]Σε ΔΡΧ'!D38/340.75 -> 5.869405723 | E44: 11.74
A45: 3.09 Μανδύας χυτού σκυροδέματος | B45: μ3 | D45: ='[1]Σε ΔΡΧ'!D39/340.75 -> 117.3881145 | E45: 234.78
A46: 3.10 Μανδύας εκτοξευομένου σκυροδέματος | B46: μ2 | D46: ='[1]Σε ΔΡΧ'!D40/340.75 -> 23.47762289 | E46: 46.96
A47: 3.11 Σιδηροδοοί ως φέρων οργανισμός | B47: kg | E47: 1.8
A48: ΣΥΝΟΛΟ ΣΚΥΡΟΔΕΜΑΤΑ | F48: =SUM(F37:F47) -> 0 | G48: =SUM(G37:G47) -> 0
A49: 4. Τοιχοποιίες
A50: 4.01 Λιθοδομές με κοινούς λίθους | B50: μ2 | D50: ='[1]Σε ΔΡΧ'!D43/340.75 -> 14.67351431 | E50: 29.34 | F50: =IF(C50<=0," ",D50*C50) ->  | G50: =IF(C50<=0," ",E50*C50) -> 
A51: 4.02 Λιθοδομές με λαξευτούς λίθους | B51: μ2 | D51: ='[1]Σε ΔΡΧ'!D44/340.75 -> 23.47762289 | E51: 46.96 | F51: =IF(C51<=0," ",D51*C51) ->  | G51: =IF(C51<=0," ",E51*C51) -> 
A52: 4.03 Πλινθοδομές δρομικές | B52: μ2 | D52: ='[1]Σε ΔΡΧ'!D45/340.75 -> 4.108584006 | E52: 8.22
A53: 4.04 Πλινθοδομές μπατικές | B53: μ2 | D53: ='[1]Σε ΔΡΧ'!D46/340.75 -> 7.630227439 | E53: 15.26
A54: 4.05 Τσιμεντολιθοδομές | B54: μ2 | D54: ='[1]Σε ΔΡΧ'!D47/340.75 -> 3.81511372 | E54: 7.64
A55: 4.06 Κισσηρολιθοδομες | B55: μ2 | D55: ='[1]Σε ΔΡΧ'!D48/340.75 -> 4.402054292 | E55: 8.8
A56: 4.07 Τοίχοι γυψοσανίδων απλοί | B56: μ2 | D56: ='[1]Σε ΔΡΧ'!D49/340.75 -> 11.73881145 | E56: 23.48
A57: 4.08 Τοίχοι γυψοσανίδων με 2 γυψοσανίδες σε κάθε πλευρά | B57: μ2 | D57: ='[1]Σε ΔΡΧ'!D50/340.75 -> 14.67351431 | E57: 29.34
A58: 4.09 Τσιμεντοσανίδες | B58: μ2 | E58: 36
A59: 4.10 Από ελαφρά στοιχεία τύπου YTONG, ALFA BLOCK | B59: μ2 | E59: 12
A60: 4.11 Διαχωριστικοί τοίχοι | B60: μ2 | E60: 40
A61: 4.12 Διαψωριστικοί τοίχοι με υλικά Βιομηχανικής προέλευσης (MDF, μελαμίνες κτλ) σε μεταλλικό σκελετό | B61: μ2 | E61: 35
A62: ΣΥΝΟΛΟ ΤΟΙΧΟΠΟΙΙΕΣ | F62: =SUM(F50:F61) -> 0 | G62: =SUM(G50:G61) -> 0
A63: 5. Επιχρίσματα
A64: 5.01 Ασβεστοτσιμεντοκονιαματα τριπτά | B64: μ2 | C64: 6 | D64: ='[1]Σε ΔΡΧ'!D53/340.75 -> 2.934702861 | E64: 5.86 | F64: =IF(C64<=0," ",D64*C64) -> 17.60821717 | G64: =IF(C64<=0," ",E64*C64) -> 35.16
A65: 5.02 Τσιμεντοκονιάματα τριπτά με διο/μένο περλίτη στη 2 στρώση | B65: μ2 | D65: ='[1]Σε ΔΡΧ'!D54/340.75 -> 3.228173147 | E65: 6.46 | F65: =IF(C65<=0," ",D65*C65) ->  | G65: =IF(C65<=0," ",E65*C65) -> 
A66: 5.03 Ασβεστοτσιμεντοκονιαματα με κάλυψη σαγρε | B66: μ2 | D66: ='[1]Σε ΔΡΧ'!D55/340.75 -> 3.521643434 | E66: 7.04
A67: 5.04 Αρτιφισιέλ τριπτά | B67: μ2 | D67: ='[1]Σε ΔΡΧ'!D56/340.75 -> 4.402054292 | E67: 8.8
A68: 5.05 Επιχρίσματα χωριάτικου τύπου | B68: μ2 | D68: ='[1]Σε ΔΡΧ'!D57/340.75 -> 3.81511372 | E68: 7.64
A69: 5.06 Επιχρίσματα τραβηκτά | B69: μ2 | D69: ='[1]Σε ΔΡΧ'!D58/340.75 -> 14.67351431 | E69: 29.34
A70: ΣΥΝΟΛΟ ΕΠΙΧΡΙΣΜΑΤΩΝ | F70: =SUM(F64:F69) -> 17.60821717 | G70: =SUM(G64:G69) -> 35.16
A71: 6. Επενδύσεις τοίχων
A72: 6.01 Με πλακίδια πορσελάνης | B72: μ2 | D72: ='[1]Σε ΔΡΧ'!D61/340.75 -> 14.67351431 | E72: 29.34 | F72: =IF(C72<=0," ",D72*C72) ->  | G72: =IF(C72<=0," ",E72*C72) -> 
A73: 6.02 Με Ξύλο | B73: μ2 | D73: ='[1]Σε ΔΡΧ'!D62/340.75 -> 14.67351431 | E73: 29.34
A74: 6.03 Με διακοσμητικά τούβλα | B74: μ2 | D74: ='[1]Σε ΔΡΧ'!D63/340.75 -> 17.60821717 | E74: 35.22
A75: 6.04 Με λίθινες πλάκες (Καρύστου) | B75: μ2 | D75: ='[1]Σε ΔΡΧ'!D64/340.75 -> 20.54292003 | E75: 41.08
A76: 6.05 Με πλάκες μαρμάρου | B76: μ2 | D76: ='[1]Σε ΔΡΧ'!D65/340.75 -> 20.54292003 | E76: 41.08
A77: 6.06 Με αλουμίνιο | B77: μ2 | D77: ='[1]Σε ΔΡΧ'!D66/340.75 -> 58.69405723 | E77: 117.38
A78: ΣΥΝΟΛΟ ΕΠΕΝΔΥΣΕΙΣ ΤΟΙΧΩΝ | F78: =SUM(F72:F77) -> 0 | G78: =SUM(G72:G77) -> 0
A79: 7. Στρώσεις Δαπέδων
A80: 7.01 Με τσιμεντοκονία | B80: μ2 | D80: ='[1]Σε ΔΡΧ'!D69/340.75 -> 4.402054292 | E80: 8.8 | F80: =IF(C80<=0," ",D80*C80) ->  | G80: =IF(C80<=0," ",E80*C80) -> 
A81: 7.02 Με τσιμεντόπλακες | B81: μ2 | D81: ='[1]Σε ΔΡΧ'!D70/340.75 -> 5.869405723 | E81: 11.74 | F81: =IF(C81<=0," ",D81*C81) ->  | G81: =IF(C81<=0," ",E81*C81) -> 
A82: 7.03 Γαρμπιλομωσαϊκό | B82: μ2 | D82: ='[1]Σε ΔΡΧ'!D71/340.75 -> 5.869405723 | E82: 11.74
A83: 7.04 Με μωσαϊκό λευκού τσιμέντου | B83: μ2 | D83: ='[1]Σε ΔΡΧ'!D72/340.75 -> 8.804108584 | E83: 17.6
A84: 7.05 Με λίθινες πλάκες (Καρύστου κ.λ.π.) | B84: μ2 | D84: ='[1]Σε ΔΡΧ'!D73/340.75 -> 14.67351431 | E84: 29.34
A85: 7.06 Με πλάκες μαρμάρου | B85: μ2 | D85: ='[1]Σε ΔΡΧ'!D74/340.75 -> 17.60821717 | E85: 35.22
A86: 7.07 Με πλακίδια κεραμικά ή πορσελάνης | B86: μ2 | D86: ='[1]Σε ΔΡΧ'!D75/340.75 -> 17.60821717 | E86: 35.22
A87: 7.08 Με πλαστικά πλακίδια ή τάπητα | B87: μ2 | D87: ='[1]Σε ΔΡΧ'!D76/340.75 -> 5.869405723 | E87: 11.74
A88: 7.09 Με λωρίδες σουηδικής ξυλείας | B88: μ2 | D88: ='[1]Σε ΔΡΧ'!D77/340.75 -> 17.60821717 | E88: 35.22
A89: 7.10 Με λωρίδες αφρικανικής ξυλείας | B89: μ2 | D89: ='[1]Σε ΔΡΧ'!D78/340.75 -> 23.47762289 | E89: 46.98
A90: 7.11 Με λωρίδες δρυός | B90: μ2 | D90: ='[1]Σε ΔΡΧ'!D79/340.75 -> 29.34702861 | E90: 58.7
A91: 7.12 Με μοκέτα | B91: μ2 | D91: ='[1]Σε ΔΡΧ'!D80/340.75 -> 8.804108584 | E91: 17.6
A92: 7.13 Ασφαλτικές στρώσεις | B92: μ2 | E92: 14
A93: ΣΥΝΟΛΟ ΣΤΡΩΣΕΙΣ ΔΑΠΕΔΩΝ | F93: =SUM(F80:F92) -> 0 | G93: =SUM(G80:G92) -> 0
A94: 8. Κουφώματα
A95: 8.01 Πόρτες πρεσσαριστές κοινές | B95: μ2 | D95: ='[1]Σε ΔΡΧ'!D83/340.75 -> 29.34702861 | E95: 58.7 | F95: =IF(C95<=0," ",D95*C95) ->  | G95: =IF(C95<=0," ",E95*C95) -> 
A96: 8.02 Πόρτες πρεσσαριστές οκουμέ | B96: μ2 | D96: ='[1]Σε ΔΡΧ'!D84/340.75 -> 35.21643434 | E96: 70.44 | F96: =IF(C96<=0," ",D96*C96) ->  | G96: =IF(C96<=0," ",E96*C96) -> 
A97: 8.03 Πόρτες πρεσ. καπλ. κάσες δρύ ή καρυδιά | B97: μ2 | D97: ='[1]Σε ΔΡΧ'!D85/340.75 -> 73.36757153 | E97: 146.74
A98: 8.04 Πόρτες ραμποτέ ή ταμπλ. σουηδ. ξυλεία | B98: μ2 | D98: ='[1]Σε ΔΡΧ'!D86/340.75 -> 51.35730007 | E98: 102.72
A99: 8.05 Πόρτες ραμποτέ ή ταμπλ. δρύ ή καρυδιά | B99: μ2 | D99: ='[1]Σε ΔΡΧ'!D87/340.75 -> 117.3881145 | E99: 234.78
A100: 8.06 Υαλοστάσια από σουηδική ξυλεία | B100: μ2 | D100: ='[1]Σε ΔΡΧ'!D88/340.75 -> 44.02054292 | E100: 88.04
A101: 8.07 Υαλοστάσια από όρεγκον πάιν | B101: μ2 | D101: ='[1]Σε ΔΡΧ'!D89/340.75 -> 58.69405723 | E101: 117.38
A102: 8.08 Σκούρα από σουηδική ξυλεία | B102: μ2 | D102: ='[1]Σε ΔΡΧ'!D90/340.75 -> 44.02054292 | E102: 88.04
A103: 8.09 Σκούρα από όρεγκον πάιν | B103: μ2 | D103: ='[1]Σε ΔΡΧ'!D91/340.75 -> 58.69405723 | E103: 117.38
A104: 8.10 Ρολλά από όρεγκον πάιν | B104: μ2 | D104: ='[1]Σε ΔΡΧ'!D92/340.75 -> 44.02054292 | E104: 88.04
A105: 8.11 Ρολλά πλαστικά | B105: μ2 | D105: ='[1]Σε ΔΡΧ'!D93/340.75 -> 17.60821717 | E105: 35.22
A106: 8.12 Σιδερένιες πόρτες | B106: μ2 | D106: ='[1]Σε ΔΡΧ'!D94/340.75 -> 29.34702861 | E106: 58.7
A107: 8.13 Σιδερένια παράθυρα | B107: μ2 | D107: ='[1]Σε ΔΡΧ'!D95/340.75 -> 23.47762289 | E107: 46.96
A108: 8.14 Σιδερένιες βιτρίνες | B108: μ2 | D108: ='[1]Σε ΔΡΧ'!D96/340.75 -> 23.47762289 | E108: 46.96
A109: 8.15 Συρόμενα ή σταθ. υαλοστ. αλουμινίου | B109: μ2 | D109: ='[1]Σε ΔΡΧ'!D97/340.75 -> 38.1511372 | E109: 76.3
A110: 8.16 Συρομ. ή σταθ. σκούρα με πλαστικό | B110: μ2 | D110: ='[1]Σε ΔΡΧ'!D98/340.75 -> 20.54292003 | E110: 41.08
A111: 8.17 Ανοιγόμενα περιστρ. κουφώματα αλουμινίου | B111: μ2 | D111: ='[1]Σε ΔΡΧ'!D99/340.75 -> 52.8246515 | E111: 105.64
A112: 8.18 Βιτρίνες αλουμινίου | B112: μ2 | D112: ='[1]Σε ΔΡΧ'!D100/340.75 -> 35.21643434 | E112: 70.44
A113: 8.19 Μονόφυλλη πυράντοχη πόρτα Τ30 -Τ90 | B113: τεμάχιο | D113: ='[1]Σε ΔΡΧ'!D101/340.75 -> 352.1643434 | E113: 704.32
A114: 8.20 Δίφυλλη πυράντοχη πόρτα Τ30 -Τ90 | B114: τεμάχιο | D114: ='[1]Σε ΔΡΧ'!D102/340.75 -> 586.9405723 | E114: 1173.88
A115: 8.21 Γκαραζόπορτες ανακλινόμενες ή τυλιγόμενες | B115: τεμάχιο | E115: 120
A116: ΣΥΝΟΛΟ ΚΟΥΦΩΜΑΤΑ | F116: =SUM(F95:F115) -> 0 | G116: =SUM(G95:G115) -> 0
A117: 9. Ντουλάπια
A118: 9.01 Ντουλάπες κοινές (υπνοδωματίων) | B118: μ2 όψης | D118: ='[1]Σε ΔΡΧ'!D105/340.75 -> 58.69405723 | E118: 117.38 | F118: =IF(C118<=0," ",D118*C118) ->  | G118: =IF(C118<=0," ",E118*C118) -> 
A119: 9.02 Ντουλάπια κουζίνας κοινά | B119: μ./μήκους | D119: ='[1]Σε ΔΡΧ'!D106/340.75 -> 44.02054292 | E119: 88.04 | F119: =IF(C119<=0," ",D119*C119) ->  | G119: =IF(C119<=0," ",E119*C119) -> 
A120: 9.03 Ντουλάπια κουζ. φορμάικα ή καπλαμά | B120: μ./μήκους | D120: ='[1]Σε ΔΡΧ'!D107/340.75 -> 58.69405723 | E120: 117.38 | F120: =IF(C120<=0," ",D120*C120) ->  | G120: =IF(C120<=0," ",E120*C120) -> 
A121: 9.04 Ντουλάπια κουζ. από συμπαγή ξυλεία | B121: μ./μήκους | D121: ='[1]Σε ΔΡΧ'!D108/340.75 -> 146.7351431 | E121: 293.48 | F121: =IF(C121<=0," ",D121*C121) ->  | G121: =IF(C121<=0," ",E121*C121) -> 
A122: ΣΥΝΟΛΟ ΝΤΟΥΛΑΠΙΑ | F122: =SUM(F118:F121) -> 0 | G122: =SUM(G118:G121) -> 0
A123: 10. Μονώσεις
A124: 10.01 θερμομόνωση-υγρομόνωση δώματος | B124: μ2 | D124: ='[1]Σε ΔΡΧ'!D111/340.75 -> 14.67351431 | E124: 29.34 | F124: =IF(C124<=0," ",D124*C124) ->  | G124: =IF(C124<=0," ",E124*C124) -> 
A125: 10.02 Θερμομόνωση-υγρομόνωση βεραντών | B125: μ2 | D125: ='[1]Σε ΔΡΧ'!D112/340.75 -> 7.336757153 | E125: 14.68 | F125: =IF(C125<=0," ",D125*C125) ->  | G125: =IF(C125<=0," ",E125*C125) -> 
A126: 10.03 Θερμομόνωση υγρομόνωση κατακόρυφων επιφανειών | B126: μ2 | D126: ='[1]Σε ΔΡΧ'!D113/340.75 -> 2.934702861 | E126: 5.86 | F126: =IF(C126<=0," ",D126*C126) ->  | G126: =IF(C126<=0," ",E126*C126) -> 
A127: 10.04 Υγρομόνωση τοιχείων υπογείων | B127: μ2 | D127: ='[1]Σε ΔΡΧ'!D114/340.75 -> 2.054292003 | E127: 4.1 | F127: =IF(C127<=0," ",D127*C127) ->  | G127: =IF(C127<=0," ",E127*C127) -> 
A128: 10.05 Υγρομόνωση δαπέδων επί εδάφους | B128: μ2 | D128: ='[1]Σε ΔΡΧ'!D115/340.75 -> 2.934702861 | E128: 5.86 | F128: =IF(C128<=0," ",D128*C128) ->  | G128: =IF(C128<=0," ",E128*C128) -> 
A129: ΣΥΝΟΛΟ ΜΟΝΩΣΕΙΣ - ΣΤΕΓΑΝΩΣΕΙΣ | F129: =SUM(F124:F128) -> 0 | G129: =SUM(G124:G128) -> 0
A130: 11. Μαρμαρικά
A131: 11.01 Κατώφλια, επίστρ. στηθαίων ποδιές | B131: μ./μήκους | D131: ='[1]Σε ΔΡΧ'!D118/340.75 -> 4.402054292 | E131: 8.8 | F131: =IF(C131<=0," ",D131*C131) ->  | G131: =IF(C131<=0," ",E131*C131) -> 
A132: 11.02 Μαρμαροεπένδυση βαθμίδος | B132: μ./μήκους | D132: ='[1]Σε ΔΡΧ'!D119/340.75 -> 14.67351431 | E132: 29.34 | F132: =IF(C132<=0," ",D132*C132) ->  | G132: =IF(C132<=0," ",E132*C132) -> 
A133: ΣΥΝΟΛΟ ΜΑΡΜΑΡΙΚΑ | F133: =SUM(F131:F132) -> 0 | G133: =SUM(G131:G132) -> 0
A134: 12. Κλίμακες
A135: 12.01 Σιδερένια βαθμίδα | B135: μ./μήκους | D135: ='[1]Σε ΔΡΧ'!D122/340.75 -> 11.73881145 | E135: 23.48 | F135: =IF(C135<=0," ",D135*C135) ->  | G135: =IF(C135<=0," ",E135*C135) -> 
A136: 12.02 Ξύλινη βαθμίδα | B136: μ./μήκους | D136: ='[1]Σε ΔΡΧ'!D123/340.75 -> 29.34702861 | E136: 58.7 | F136: =IF(C136<=0," ",D136*C136) ->  | G136: =IF(C136<=0," ",E136*C136) -> 
A137: ΣΥΝΟΛΟ ΚΛΙΜΑΚΕΣ | F137: =SUM(F135:F136) -> 0 | G137: =SUM(G135:G136) -> 0
A138: 13. Υαλοπίνακες
A139: 13.01 Απλοί | B139: μ2 | D139: ='[1]Σε ΔΡΧ'!D126/340.75 -> 3.228173147 | E139: 6.46 | F139: =IF(C139<=0," ",D139*C139) ->  | G139: =IF(C139<=0," ",E139*C139) -> 
A140: 13.02 Διπλοί θερμομονωτικοί | B140: μ2 | D140: ='[1]Σε ΔΡΧ'!D127/340.75 -> 19.0755686 | E140: 38.16 | F140: =IF(C140<=0," ",D140*C140) ->  | G140: =IF(C140<=0," ",E140*C140) -> 
A141: ΣΥΝΟΛΟ ΥΑΛΟΠΙΝΑΚΕΣ | F141: =SUM(F139:F140) -> 0 | G141: =SUM(G139:G140) -> 0
A142: 14 Ψευδοροφές
A143: 14.01 Επίχρισμα σε μεταλλικό πλέγμα | B143: μ2 | D143: ='[1]Σε ΔΡΧ'!D130/340.75 -> 7.630227439 | E143: 15.26 | F143: =IF(C143<=0," ",D143*C143) ->  | G143: =IF(C143<=0," ",E143*C143) -> 
A144: 14.02 Από γυψοσανίδες | B144: μ2 | D144: ='[1]Σε ΔΡΧ'!D131/340.75 -> 8.804108584 | E144: 17.6 | F144: =IF(C144<=0," ",D144*C144) ->  | G144: =IF(C144<=0," ",E144*C144) -> 
A145: 14.03 Πλάκες ορυκτ. ινών σε μεταλλικό σκελετό με μόνωση | B145: μ2 | D145: ='[1]Σε ΔΡΧ'!D132/340.75 -> 8.804108584 | E145: 17.6 | F145: =IF(C145<=0," ",D145*C145) ->  | G145: =IF(C145<=0," ",E145*C145) -> 
A146: 14.04 Από ξύλο | B146: μ2 | D146: ='[1]Σε ΔΡΧ'!D133/340.75 -> 11.73881145 | E146: 23.48 | F146: =IF(C146<=0," ",D146*C146) ->  | G146: =IF(C146<=0," ",E146*C146) -> 
A147: ΣΥΝΟΛΟ ΨΕΥΔΟΡΟΦΕΣ | F147: =SUM(F143:F146) -> 0 | G147: =SUM(G143:G146) -> 0
A148: 15. Επικαλύψεις
A149: 15.01 Επικεραμωση πλακός σκυροδέματος | B149: μ2 | D149: ='[1]Σε ΔΡΧ'!D136/340.75 -> 11.73881145 | E149: 23.48 | F149: =IF(C149<=0," ",D149*C149) ->  | G149: =IF(C149<=0," ",E149*C149) -> 
A150: 15.02 Ξυλ. στέγη κεραμ. επι πλακός σκυροδέματος | B150: μ2 | D150: ='[1]Σε ΔΡΧ'!D137/340.75 -> 20.54292003 | E150: 41.08 | F150: =IF(C150<=0," ",D150*C150) -> 
A151: 15.03 Ξύλ. στέγη αυτοφερόμενη με κεραμ. | B151: μ2 | D151: ='[1]Σε ΔΡΧ'!D138/340.75 -> 35.21643434 | E151: 70.44 | F151: =IF(C151<=0," ",D151*C151) -> 
A152: 15.04 Σιδερένια στέγη με αυλακ. λαμαρίνα | B152: μ2 | D152: ='[1]Σε ΔΡΧ'!D139/340.75 -> 11.73881145 | E152: 23.48 | F152: =IF(C152<=0," ",D152*C152) -> 
A153: 15.05 Σιδερένια στέγη με φύλλα αμιαντοτσιμέντου | B153: μ2 | D153: ='[1]Σε ΔΡΧ'!D140/340.75 -> 11.73881145 | E153: 23.48 | F153: =IF(C153<=0," ",D153*C153) -> 
A154: 15.06 Επικάλυψη με σχιστόπλακες | B154: μ2 | E154: 32
A155: 15.07 Επικάλυψη μς πολυκαρβονικά φύλλα | B155: μ2 | E155: 16
A156: ΣΥΝΟΛΟ ΕΠΙΚΑΛΥΨΕΙΣ | F156: =SUM(F149:F155) -> 0 | G156: =SUM(G149:G155) -> 0
A157: 16. Στηθαία
A158: 16.01 Από οπλισμένο σκυρόδεμα | B158: μ./μήκους | D158: ='[1]Σε ΔΡΧ'!D143/340.75 -> 11.73881145 | E158: 23.48 | F158: =IF(C158<=0," ",D158*C158) ->  | G158: =IF(C158<=0," ",E158*C158) -> 
A159: 16.02 Από δρομική πλινθοδομή | B159: μ./μήκους | D159: ='[1]Σε ΔΡΧ'!D144/340.75 -> 4.402054292 | E159: 8.8 | F159: =IF(C159<=0," ",D159*C159) -> 
A160: 16.03 Από κιγκλίδωμα σιδερένιο | B160: μ./μήκους | D160: ='[1]Σε ΔΡΧ'!D145/340.75 -> 11.73881145 | E160: 23.48 | F160: =IF(C160<=0," ",D160*C160) -> 
A161: 16.04 Από κιγκλίδωμα αλουμινίου | B161: μ./μήκους | D161: ='[1]Σε ΔΡΧ'!D146/340.75 -> 17.60821717 | E161: 35.22 | F161: =IF(C161<=0," ",D161*C161) -> 
A162: 16.05 Από κιγκλίδωμα ξύλινο | B162: μ./μήκους | D162: ='[1]Σε ΔΡΧ'!D147/340.75 -> 23.47762289 | E162: 46.96 | F162: =IF(C162<=0," ",D162*C162) -> 
A163: 16.06 Από υαλοπίνακες ασφαλείας | B163: μ./μήκους | E163: 61.5
A164: ΣΥΝΟΛΟ ΣΤΗΘΑΙΑ | F164: =SUM(F158:F163) -> 0 | G164: =SUM(G158:G163) -> 0
A165: 17. Χρωματισμοί
A166: 17.01 Υδροχρωματισμοί απλοί | B166: μ2 | D166: ='[1]Σε ΔΡΧ'!D150/340.75 -> 0.5869405723 | E166: 1.18 | F166: =IF(C166<=0," ",D166*C166) ->  | G166: =IF(C166<=0," ",E166*C166) -> 
A167: 17.02 Υδροχρωματισμοί με τσίγκο & κόλλα | B167: μ2 | D167: ='[1]Σε ΔΡΧ'!D151/340.75 -> 0.7336757153 | E167: 1.46
A168: 17.03 Πλαστικά επί τοίχου | B168: μ2 | C168: 199.9 | D168: ='[1]Σε ΔΡΧ'!D152/340.75 -> 1.760821717 | E168: 3.52 | F168: =IF(C168<=0," ",D168*C168) -> 351.9882612 | G168: =IF(C168<=0," ",E168*C168) -> 703.648
A169: 17.04 Πλαστικά σπατουλαριστά | B169: μ2 | D169: ='[1]Σε ΔΡΧ'!D153/340.75 -> 2.934702861 | E169: 5.86
A170: 17.05 Τσιμεντοχρώματα | B170: μ2 | D170: ='[1]Σε ΔΡΧ'!D154/340.75 -> 2.934702861 | E170: 5.86
A171: 17.06 Ακρυλικά και ρελιέφ | B171: μ2 | D171: ='[1]Σε ΔΡΧ'!D155/340.75 -> 3.521643434 | E171: 7.04
A172: 17.07 Ριπολίνες κοινές | B172: μ2 | D172: ='[1]Σε ΔΡΧ'!D156/340.75 -> 3.521643434 | E172: 7.04
A173: 17.08 Ριπολίνες σατινέ | B173: μ2 | D173: ='[1]Σε ΔΡΧ'!D157/340.75 -> 4.402054292 | E173: 8.8
A174: 17.09 Ντουκοχρώματα | B174: μ2 | D174: ='[1]Σε ΔΡΧ'!D158/340.75 -> 4.402054292 | E174: 8.8
A175: 17.10 Λούστρα | B175: μ2 | D175: ='[1]Σε ΔΡΧ'!D159/340.75 -> 11.73881145 | E175: 23.48
A176: ΣΥΝΟΛΟ ΧΡΩΜΑΤΙΣΜΟΙ | F176: =SUM(F166:F175) -> 351.9882612 | G176: =SUM(G166:G175) -> 703.648
A177: 18. Διάφορες οικοδομικές εργασίες
A178: 18.01 Μεταλ. πλέγμ· για επίχρ. πυροπροστασίας | B178: μ2 | D178: ='[1]Σε ΔΡΧ'!D162/340.75 -> 4.402054292 | E178: 8.8 | F178: =IF(C178<=0," ",D178*C178) ->  | G178: =IF(C178<=0," ",E178*C178) -> 
A179: 18.02 Ικριώματα | B179: μ2 | C179: 199.9 | D179: ='[1]Σε ΔΡΧ'!D163/340.75 -> 1.027146001 | E179: 2.06 | F179: =IF(C179<=0," ",D179*C179) -> 205.3264857 | G179: =IF(C179<=0," ",E179*C179) -> 411.794
A180: 18.03 Τζάκι με καπνοδόχο | B180: αποκοπή | D180: ='[1]Σε ΔΡΧ'!D164/340.75 -> 440.2054292 | E180: 880.42 | F180: =IF(C180<=0," ",D180*C180) ->  | G180: =IF(C180<=0," ",E180*C180) -> 
A181: 18.04 Κλειδαριές και πόμολα | B181: μ2 κάτοψης | D181: ='[1]Σε ΔΡΧ'!D165/340.75 -> 0.4402054292 | E181: 0.88 | F181: =IF(C181<=0," ",D181*C181) ->  | G181: =IF(C181<=0," ",E181*C181) -> 
A182: ΣΥΝΟΛΟ ΔΙΑΦΟΡΕΣ ΟΙΚ ΕΡΓΑΣΙΕΣ | F182: =SUM(F178:F181) -> 205.3264857 | G182: =SUM(G178:G181) -> 411.794
A183: 19. Πέργολες
A184: 19.01 Από μεταλλικό σκελετό | B184: μ2 | E184: 20 | F184: =IF(C184<=0," ",D184*C184) ->  | G184: =IF(C184<=0," ",E184*C184) -> 
A185: 19.02 Από σκελετό αλουμινίου | B185: μ2 | E185: 25 | F185: =IF(C185<=0," ",D185*C185) ->  | G185: =IF(C185<=0," ",E185*C185) -> 
A186: 19.03 Από ξυλεία προλουστραρισμένη | B186: μ3 | E186: 900 | F186: =IF(C186<=0," ",D186*C186) ->  | G186: =IF(C186<=0," ",E186*C186) -> 
A187: 19.04 Από ξυλεία (χωρίς λούστρο) | B187: μ3 | E187: 550 | F187: =IF(C187<=0," ",D187*C187) ->  | G187: =IF(C187<=0," ",E187*C187) -> 
A188: ΣΥΝΟΛΟ ΠΕΡΓΟΛΕΣ | F188: =SUM(F184:F187) -> 0 | G188: =SUM(G184:G187) -> 0
A189: 20. Περιφράξεις
A190: 20.01 Πάσσαλοι σιδερένιοι | B190: μ | E190: 1.5 | F190: =IF(C190<=0," ",D190*C190) ->  | G190: =IF(C190<=0," ",E190*C190) -> 
A191: 20.02 Πάσσαλοι ξύλινοι | B191: μ | E191: 2.5 | F191: =IF(C191<=0," ",D191*C191) ->  | G191: =IF(C191<=0," ",E191*C191) -> 
A192: 20.03 Συρματόπλεγμα (κοτετσόσυρμα) | B192: μ2 | E192: 5 | F192: =IF(C192<=0," ",D192*C192) ->  | G192: =IF(C192<=0," ",E192*C192) -> 
A193: 20.04 Συρματόπλεγμα τετραγωνικής οπής | B193: μ2 | E193: 7.5 | F193: =IF(C193<=0," ",D193*C193) ->  | G193: =IF(C193<=0," ",E193*C193) -> 
A194: ΣΥΝΟΛΟ ΠΕΡΙΦΡΑΞΕΙΣ | F194: =SUM(F190:F193) -> 0 | G194: =SUM(G190:G193) -> 0
A195: 21. Είδη Υγιεινής
A196: 21.01 Πλήρες σετ λουτρού | B196: αποκοπή | D196: ='[1]Σε ΔΡΧ'!D168/340.75 -> 234.7762289 | E196: 469.56 | F196: =IF(C196<=0," ",D196*C196) ->  | G196: =IF(C196<=0," ",E196*C196) -> 
A197: 21.02 Σετ W.C. | B197: αποκοπή | D197: ='[1]Σε ΔΡΧ'!D169/340.75 -> 88.04108584 | E197: 176.08 | F197: =IF(C197<=0," ",D197*C197) ->  | G197: =IF(C197<=0," ",E197*C197) -> 
A198: 21.03 Νεροχύτης-μπαταρία κουζίνας | B198: αποκοπή | D198: ='[1]Σε ΔΡΧ'!D170/340.75 -> 88.04108584 | E198: 176.08 | F198: =IF(C198<=0," ",D198*C198) ->  | G198: =IF(C198<=0," ",E198*C198) -> 
A199: ΣΥΝΟΛΟ ΕΙΔΗ ΥΓΙΕΙΝΗΣ | F199: =SUM(F196:F198) -> 0 | G199: =SUM(G196:G198) -> 0
A200: 22. Υδραυλικές εγκαταστάσεις
A201: 22.01 Υδρευση-αποχετευση πλήρους λουτρού | B201: αποκοπή | D201: ='[1]Σε ΔΡΧ'!D173/340.75 -> 322.8173147 | E201: 645.64 | F201: =IF(C201<=0," ",D201*C201) ->  | G201: =IF(C201<=0," ",E201*C201) -> 
A202: 22.02 Υδρευση-αποχετευση WC,νεροχ. κουζίνα | B202: αποκοπή | D202: ='[1]Σε ΔΡΧ'!D174/340.75 -> 176.0821717 | E202: 352.16 | F202: =IF(C202<=0," ",D202*C202) ->  | G202: =IF(C202<=0," ",E202*C202) -> 
A203: 22.03 Υδρευση-αποχετευση κουζίνας ή εργαστ. | B203: αποκοπή | D203: ='[1]Σε ΔΡΧ'!D175/340.75 -> 176.0821717 | E203: 352.16 | F203: =IF(C203<=0," ",D203*C203) ->  | G203: =IF(C203<=0," ",E203*C203) -> 
A204: ΣΥΝΟΛΟ ΥΔΡΑΥΛΙΚΕΣ ΕΓΚΑΤΑΣΤΑΣΕΙΣ | F204: =SUM(F201:F203) -> 0 | G204: =SUM(G201:G203) -> 0
A205: 23. Θέρμανση - Ψύξη
A206: 23.01 Κεντρική θέρμανση | B206: KCaL | D206: ='[1]Σε ΔΡΧ'!D178/340.75 -> 0.07336757153 | E206: 0.14 | F206: =IF(C206<=0," ",D206*C206) ->  | G206: =IF(C206<=0," ",E206*C206) -> 
... 26 more rows

Sheet ΕΝΣΗΜΑ ΙΚΑ
C1: ΕΡΓΟ: Εργασίες περίπτωσης ιβ «Εργασίες εξωτερικών χρωματισμών ή αντικατάσταση κιγκλιδωμάτων ή επισκευή επιχρισμάτων ή επισκευή όψεων με χρήση ικριωμάτων» της παρ 2 του άρθρου 29 του ν.4495/2017 ΕΡΓΟΔΟΤΗΣ: Κανα.....τάνιου Ελένη ΘΕΣΗ ΕΡΓΟΥ: ....-Ο.Τ 293 .....
A2: 1.
A3: 1.01
A4: 1.02
A5: 1.03
A6: 1.04
A7: 1.05 | B7: -1 | C7: -2 | D7: -3 | E7: -4 | F7: -5 | G7: -6 | H7: -7
A8: 1.06 | B8: Α/Α | C8: ΕΡΓΑΣΙΑ | D8: ΜΟΝΑΔΑ | E8: ΕΝΣ/ΜΟΝ | F8: ΠΟΣΟΤΗΤΑ ΕΡΓΑΣΙΑΣ | G8: ΗΜΕΡ/ΣΘΙΑ | H8: ΦΑΣΗ ΚΑΤΑΣΚΕΥΗΣ ΕΡΓΟΥ
A9: 1.07 | B9: 1. | C9: ΧΩΜΑΤΟΥΡΓΙΚΑ
A10: 1.08 | B10: 1.01 | C10: Γενικές εκσκαφές γαιώδεις με μηχανικά μέσα (περιλαμβάνεται φόρτωση, μεταφορά κλπ.) | D10: Μ3 | E10: 0.002 | G10: =F10*E10 -> 0 | H10: 1
A11: 1.09 | B11: 1.02 | C11: Γενικές εκσκαφές ημιβραχώδεις με μηχανικά μέσα εκτός κομπρεσέρ (περιλαμβάνεται φόρτωση, μεταφορά κλπ.) | D11: Μ3 | E11: 0.004 | G11: =F11*E11 -> 0 | H11: 1
A12: 1.10 | B12: 1.03 | C12: Γενικές εκσκαφές βραχώδεις με μηχανικά μέσα εκτός κομπρεσέρ (περιλαμβάνεται φόρτωση, μεταφορά κλπ.) | D12: Μ3 | E12: 0.005 | G12: 0 | H12: 1
A13: 1.11 | B13: 1.04 | C13: Εκσκαφές θεμελίων γαιώδεις με μηχανικά μέσα (περιλαμβάνεται φόρτωση, μεταφορά κλπ.) | D13: Μ3 | E13: 0.003 | G13: 0 | H13: 1
A14: 2. | B14: 1.05 | C14: Εκσκαφές θεμελίων ημιβραχώδεις με μηχανικά μέσα εκτός κομπρεσέρ (περιλαμβάνεται φόρτωση, μεταφορά κλπ.) | D14: Μ3 | E14: 0.004 | G14: 0 | H14: 1
A15: 2.01 | B15: 1.06 | C15: Εκσκαφές θεμελίων βραχώδεις με μηχανικά μέσα εκτός κομπρεσέρ (περιλαμβάνεται φόρτωση, μεταφορά κλπ.) | D15: Μ3 | E15: 0.006 | G15: 0 | H15: 1
A16: 2.02 | B16: 1.07 | C16: Επιχώσεις με μηχανικά μέσα (περιλαμβάνεται φόρτωση, μεταφορά, διάστρωση, συμπύκνωση κλπ.) | D16: Μ3 | E16: 0.002 | G16: 0 | H16: 1
A17: 2.03 | B17: 1.08 | C17: Εκσκαφές γαιώδεις με τα χέρια (περιλαμβάνεται φόρτωση, μεταφορά κλπ.) | D17: Μ3 | E17: 0.36 | G17: 0 | H17: 1
A18: 2.04 | B18: 1.09 | C18: Εκσκαφές ημιβραχώδεις με τα χέρια ή κομπρεσέρ (περιλαμβάνεται φόρτωση, μεταφορά κλπ.) | D18: Μ3 | E18: 0.45 | G18: 0 | H18: 1
A19: 2.05 | B19: 1.10 | C19: Εκσκαφές βραχώδεις με τα χέρια ή κομπρεσέρ (περιλαμβάνεται φόρτωση, μεταφορά κλπ.) | D19: Μ3 | E19: 0.72 | G19: 0 | H19: 1
A20: 2.06 | B20: 1.11 | C20: Επιχώσεις πάσης φύσεως με τα χέρια (περιλαμβάνεται φόρτωση, μεταφορά, διάστρωση, συμπύκνωση κλπ.) | D20: Μ3 | E20: 0.18 | G20: 0 | H20: 1
A21: 2.07 | D21: ΣΥΝΟΛΟ ΧΩΜΑΤΟΥΡΓΙΚΑ | G21: =SUM(G10:G20) -> 0
A22: 2.08 | B22: 2. | C22: ΚΑΘΑΙΡΕΣΕΙΣ
A23: 2.09 | B23: 2.01 | C23: Καθαίρεση ωπλ. σκυροδέματος | D23: Μ3 | E23: 1.44 | G23: =F23*E23 -> 0 | H23: 1
A24: 2.10 | B24: 2.02 | C24: Καθαιρέσεις σκυροδεμάτων δαπέδων (άοπλο ή ωπλισμένο με πλέγμα) | D24: Μ3 | E24: 0.9 | G24: 0 | H24: 1
A25: 2.11 | B25: 2.03 | C25: Καθαίρεση πλινθοδομής συνήθους κονιάματος | D25: Μ3 | E25: 0.27 | G25: 0 | H25: 1
A26: 2.12 | B26: 2.04 | C26: Καθαίρεση πλινθοδομής ισχυρού κονιάματος | D26: Μ3 | E26: 0.36 | G26: 0 | H26: 1
A27: 2.13 | B27: 2.05 | C27: Καθαίρεση λιθοδομών πάσης φύσεως | D27: Μ3 | E27: 0.45 | G27: 0 | H27: 1
A28: 2.14 | B28: 2.06 | C28: Καθαίρεση επιχρισμάτων | D28: Μ2 | E28: 0.09 | G28: 0 | H28: 1
A29: 2.15 | B29: 2.07 | C29: Καθαίρεση τοίχων, εκ πλινθοδομών για διάνοιξη ανοίγματος (θυρών, παραθύρων κλπ.) | D29: τεμ. | E29: 0.333 | G29: 0 | H29: 1
A30: 2.16 | B30: 2.08 | C30: Αποξήλωση ξύλινων ή μεταλλικών κουφωμάτων μετά των κασωμάτων τους | D30: Μ2 | E30: 0.202 | G30: 0 | H30: 1
A31: 3. | B31: 2.09 | C31: Αποξήλωση κεραμιδιών στέγης (κεραμίδια καρφωτά, δετά ή κολυμπητά) | D31: Μ2 | E31: 0.018 | G31: 0 | H31: 1
A32: 3.01 | B32: 2.10 | C32: Αποξήλωση σκελετού (ζευκτών κλπ.) στέγης πάσης φύσεως | D32: Μ2 | E32: 0.036 | G32: 0 | H32: 1
A33: 3.02 | B33: 2.11 | C33: Αποξήλωση κυματοειδών φύλλων επικάλυψης πάσης φύσεως (αμιαντοτσιμέντου, μεταλλικών) | D33: Μ2 | E33: 0.013 | G33: 0 | H33: 1
A34: 3.03 | B34: 2.12 | C34: Αποξήλωση δαπέδων εκ φυσικών ή τεχνικών πλακών ή πλακιδίων ή μαρμάρων πάσης φύσεως | D34: Μ2 | E34: 0.027 | G34: 0 | H34: 1
A35: 3.04 | B35: 2.13 | C35: Αποξήλωση ξύλινων δαπέδων | D35: Μ2 | E35: 0.022 | G35: 0 | H35: 1
A36: 3.05 | B36: 2.14 | C36: Αποξήλωση υγρομόνωσης με ασφαλτόπανο ή μεμβράνη | D36: Μ2 | E36: 0.009 | G36: 0 | H36: 1
A37: 3.06 | B37: 2.15 | C37: Αποξήλωση θερμομόνωσης πάσης φύσεως | D37: Μ2 | E37: 0.007 | G37: 0 | H37: 1
A38: 3.07 | B38: 2.16 | C38: Απομάκρυνση και φόρτωση δια χειρών πάσης φύσεως προϊόντων καθαιρέσεων ή αποξηλώσεων | D38: Μ3 | E38: 0.27 | G38: 0 | H38: 1
A39: 3.08 | D39: ΣΥΝΟΛΟ ΚΑΘΑΙΡΕΣΕΙΣ | G39: =SUM(G23:G38) -> 0
A40: 3.09 | B40: 3. | C40: ΣΚΥΡΟΔΕΜΑΤΑ
A41: 3.10 | B41: 3.01 | C41: Ωπλισμένα σκυροδέματα | D41: Μ3 | E41: 0.81 | G41: =F41*E41 -> 0 | H41: 1
A42: 3.11 | B42: 3.02 | C42: Ελαφρά ωπλ. σκυροδέματα (με πλέγμα) | D42: Μ3 | E42: 0.45 | G42: 0 | H42: 1
A43: 3.12 | B43: 3.03 | C43: Ελαφρομπετόν πάσης φύσεως (BETOCEL, περλιτόδεμα κλπ.) | D43: Μ3 | E43: 0.27 | G43: 0 | H43: 1
A44: 3.13 | B44: 3.04 | C44: Άοπλο σκυρόδεμα (GROS-BETON) | D44: Μ3 | E44: 0.315 | G44: 0 | H44: 1
A45: 4. | B45: 3.05 | C45: Εξισωτικές στρώσεις (γεμίσματα δαπέδων με γαρμπιλομπετόν, ελαφρομπετόν κλπ) | D45: Μ2 | E45: 0.018 | G45: 0 | H45: 1
A46: 4.01 | B46: 3.06 | C46: Επιφάνειες εμφανούς σκυροδέματος | D46: Μ2 | E46: 0.027 | G46: 0 | H46: 1
A47: 4.02 | B47: 3.07 | C47: Σενάζ δρομικά | D47: Μ.Μ. | E47: 0.036 | G47: 0 | H47: 1
A48: 4.03 | B48: 3.08 | C48: Σενάζ μπατικά | D48: Μ.Μ. | E48: 0.063 | G48: 0 | H48: 1
A49: 4.04 | B49: 3.09 | C49: Μανδύες έγχυτου σκυροδέματος(οπλισμός, ξυλότυπος, σκυρόδεμα) | D49: Μ3 | E49: 1.35 | G49: 0 | H49: 1
A50: 4.05 | B50: 3.10 | C50: Μανδύες έκτοξευόμενου σκυροδέματος(οπλισμός, σκυρόδεμα) | D50: Μ2 | E50: 0.225 | G50: 0 | H50: 1
A51: 4.06 | B51: 3.11 | C51: Βάσεις ανεμογεννητριών (εφόσον δεν υπάρχει προϋπολογισμός) | D51: Μ3 | G51: 0 | H51: 1
A52: 4.07 | B52: 3.12 | C52: Ωπλισμένο σκυρόδεμα αντιστήριξης πρανών βαθέων εκσκαφών | D52: Μ3 | G52: 0 | H52: 1
A53: 5. | B53: 3.13 | C53: Ωπλισμένα σκυροδέματα περιβάλλοντος χώρου | D53: Μ3 | G53: 0 | H53: 1
A54: 5.01 | D54: ΣΥΝΟΛΟ ΣΚΥΡΟΔΕΜΑΤΑ | G54: =SUM(G41:G53) -> 0
A55: 5.02 | B55: 4. | C55: ΤΟΙΧΟΠΟΙΪΕΣ
A56: 5.03 | B56: 4.01 | C56: Λιθοδομές με αργούς λίθους | D56: Μ2 | E56: 0.27 | G56: 0 | H56: 2
A57: 5.04 | B57: 4.02 | C57: Λιθοδομές με λαξευτούς λίθους (λάξευμα επι τόπου) | D57: Μ2 | E57: 0.63 | G57: 0 | H57: 2
A58: 5.05 | B58: 4.03 | C58: Πλινθοδομές δρομικές | D58: Μ2 | E58: 0.054 | G58: 0 | H58: 2
A59: 5.06 | B59: 4.04 | C59: Πλινθοδομές μπατικές | D59: Μ2 | E59: 0.09 | G59: 0 | H59: 2
A60: 6. | B60: 4.05 | C60: Τσιμεντοπλινθοδομές | D60: Μ2 | E60: 0.036 | G60: 0 | H60: 2
A61: 6.01 | B61: 4.06 | C61: Πλινθοδομές εξ ελαφρών πλίνθων (κισσηροπλινθοδομές, τύπου ALFA-BLOCK κλπ.) | D61: Μ2 | E61: 0.031 | G61: 0 | H61: 2
A62: 6.02 | B62: 4.07 | C62: Διακοσμητικά τούβλα και υαλότουβλα | D62: Μ2 | E62: 0.18 | G62: 0 | H62: 2
A63: 6.03 | D63: ΣΥΝΟΛΟ ΤΟΙΧΟΠΟΙΪΕΣ | G63: =SUM(G56:G62) -> 0
A64: 6.04 | B64: 5. | C64: ΕΠΙΧΡΙΣΜΑΤΑ
A65: 6.05 | B65: 5.01 | C65: Ασβεστοτσιμεντοκονιάματα τριπτά | D65: Μ2 | E65: 0.04 | G65: =F65*E65 -> 0 | H65: 3
A66: 6.06 | B66: 5.02 | C66: Τσιμεντοκονιάματα τριπτά (με ή χωρίς μονωτικά πρόσθετα) | D66: Μ2 | E66: 0.072 | G66: 0 | H66: 3
A67: 6.07 | B67: 5.03 | C67: Ασβεστοτσιμεντοκονιάματα με τελευταία στρώση σαγρέ | D67: Μ2 | E67: 0.045 | G67: 0 | H67: 3
A68: 7. | B68: 5.04 | C68: Επιχρίσματα τύπου αρτιφισιέλ | D68: Μ2 | E68: 0.063 | G68: 0 | H68: 3
A69: 7.01 | B69: 5.05 | C69: Επιχρίσματα με τελευταία στρώση πεταχτή (χωριάτικου τύπου) | D69: Μ2 | E69: 0.036 | G69: 0 | H69: 3
A70: 7.02 | B70: 5.06 | C70: Επιχρίσματα τραβηχτά | D70: Μ.Μ. | E70: 0.198 | G70: 0 | H70: 3
A71: 7.03 | D71: ΣΥΝΟΛΟ ΕΠΙΧΡΙΣΜΑΤΑ | G71: =SUM(G65:G70) -> 0
A72: 7.04 | B72: 6. | C72: ΕΠΕΝΔΥΣΕΙΣ ΤΟΙΧΩΝ
A73: 7.05 | B73: 6.01 | C73: Με κεραμικά πλακάκια κολλητά | D73: Μ2 | E73: 0.09 | G73: =F73*E73 -> 0 | H73: 3
A74: 7.06 | B74: 6.02 | C74: Με κεραμικά πλακάκια με χρήση τσιμεντοκονιάματος | D74: Μ2 | E74: 0.108 | G74: 0 | H74: 3
A75: 7.07 | B75: 6.03 | C75: Με ξύλο | D75: Μ2 | E75: ---
A76: 7.08 | B76: 6.04 | C76: Με διακοσμητικά τούβλα | D76: Μ2 | E76: 0.162 | G76: 0 | H76: 3
A77: 7.09 | B77: 6.05 | C77: Με τεχνικές ή φυσικές πλάκες ή πέτρα (π.χ. σχιστόλιθοι κλπ.) | D77: Μ2 | E77: 0.144 | G77: 0 | H77: 3
A78: 7.10 | B78: 6.06 | C78: Με ορθομαρμάρωση | D78: Μ2 | E78: 0.135 | G78: 0 | H78: 3
A79: 7.11 | B79: 6.07 | C79: Με φύλλα μεταλλικά (αλουμινίου κλπ) | D79: Μ2 | E79: ---
A80: 7.12 | D80: ΣΥΝ ΕΠΕΝΔΥΣΕΙΣ ΤΟΙΧΩΝ | G80: =SUM(G73:G79) -> 0
A81: 8. | B81: 7. | C81: ΕΠΙΣΤΡΩΣΕΙΣ ΔΑΠΕΔΩΝ
A82: 8.01 | B82: 7.01 | C82: Με τσιμεντοκονίαμα | D82: Μ2 | E82: 0.036 | G82: =F82*E82 -> 0 | H82: 4
A83: 8.02 | B83: 7.02 | C83: Με τσιμεντόπλακες πάσης φύσεως | D83: Μ2 | E83: 0.045 | G83: 0 | H83: 4
A84: 8.03 | B84: 7.03 | C84: Με γαρμπιλομωσαϊκό (χωρίς λειότριψη και στίλβωση) | D84: Μ2 | E84: 0.045 | G84: 0 | H84: 4
A85: 9. | B85: 7.04 | C85: Με μωσαϊκό λευκού τσιμέντου (χωρίς λειότριψη και στίλβωση) | D85: Μ2 | E85: 0.054 | G85: 0 | H85: 4
A86: 9.01 | B86: 7.05 | C86: Με φυσικές πλάκες (Καρύστου κλπ.) | D86: Μ2 | E86: 0.099 | G86: 0 | H86: 4
A87: 9.02 | B87: 7.06 | C87: Με πλάκες μαρμάρου (χωρίς λειότριψη και στίλβωση) | D87: Μ2 | E87: 0.108 | G87: 0 | H87: 4
A88: 9.03 | B88: 7.07 | C88: Με κεραμικά πλακάκια | D88: Μ2 | E88: 0.099 | G88: 0 | H88: 4
A89: 9.04 | B89: 7.08 | C89: Με ξύλινα δάπεδα καρφωτά επί καδρονίων (χωρίς τρίψιμο και βερνίκωμα ) | D89: Μ2 | E89: 0.126 | G89: 0 | H89: 4
A90: 10. | B90: 7.09 | C90: Με ξύλινα κολλητά δάπεδα (χωρίς τρίψιμο και βερνίκωμα) | D90: Μ2 | E90: 0.081 | G90: 0 | H90: 4
A91: 10.01 | B91: 7.10 | C91: Με πλαστικά πλακάκια ή τάπητα (πλαστικό, μοκέττα κλπ.) | D91: Μ2 | E91: ---
A92: 10.02 | B92: 7.11 | C92: Λειότριψη και στίλβωση δαπέδων μωσαϊκών ή μαρμάρων | D92: Μ2 | E92: 0.036 | G92: 0 | H92: 4
A93: 10.03 | B93: 7.12 | C93: Τρίψιμο και βερνίκωμα ξύλινων δαπέδων | D93: Μ2 | E93: 0.031 | G93: 0 | H93: 4
A94: 10.04 | D94: ΣΥΝ ΕΠΙΣΤΡΩΣΕΙΣ ΔΑΠΕΔΩΝ | G94: =SUM(G82:G93) -> 0
A95: 11. | B95: 8. | C95: ΜΟΝΩΣΕΙΣ - ΣΤΕΓΑΝΩΣΕΙΣ
A96: 11.01 | B96: 8.01 | C96: Υγρομόνωση με πάσης φύσεως μεμβράνες ή ασφαλτόπανα | D96: Μ2 | E96: 0.018 | G96: 0 | H96: 5
A97: 11.02 | B97: 8.02 | C97: Υγρομόνωση με πάσης φύσεως επαλειφόμενο υλικό | D97: Μ2 | E97: 0.009 | G97: 0 | H97: 5
A98: 11.03 | B98: 8.03 | C98: Θερμομόνωση με τοποθέτηση πάσης φύσεως θερμομονωτικών πλακών | D98: Μ2 | E98: 0.006 | G98: 0 | H98: 5
A99: 11.04 | D99: ΣΥΝΟΛΟ ΣΤΑΓΑΝΩΣΕΙΣ | G99: =F100*E100 -> 0
A100: 11.05 | B100: 9. | C100: ΜΑΡΜΑΡΙΚΑ
A101: 11.06 | B101: 9.01 | C101: Ποδιές, κατώφλια, επίστρωση στηθαίων | D101: Μ.Μ. | E101: 0.045 | G101: 0 | H101: 4
A102: 11.07 | B102: 9.02 | C102: Επένδυση βαθμίδων (πάτημα, ρίχτυ ) | D102: Μ.Μ. | E102: 0.09 | G102: 0 | H102: 4
A103: 12. | B103: 9.03 | C103: Σκαλομέρια | D103: Ζεύγος | E103: 0.018 | G103: 0 | H103: 4
A104: 12.01 | B104: 9.04 | C104: Σοβατεπιά | D104: Μ.Μ. | E104: 0.022 | G104: 0 | H104: 4
A105: 13. | D105: ΣΥΝΟΛΟ ΜΑΡΜΑΡΙΚΑ | G105: =SUM(G96:G104) -> 0
A106: 13.01 | B106: 10. | C106: ΨΕΥΔΟΡΟΦΕΣ
A107: 13.02 | B107: 10.01 | C107: Επίχρισμα σε μεταλλικό πλέγμα | D107: Μ2 | E107: 0.09 | G107: 0 | H107: 3
A108: 13.03 | B108: 10.02 | C108: Από γυψοσανίδες | D108: Μ2 | E108: ---
A109: 13.04 | B109: 10.03 | C109: Από πλάκες ορυκτών ινών με μεταλλικό σκελετό | D109: Μ2 | E109: ---
A110: 13.05 | B110: 10.04 | C110: Από ξύλο | D110: Μ2 | E110: ---
A111: 13.06 | D111: ΣΥΝΟΛΟ ΨΕΥΔΟΡΟΦΕΣ | G111: =SUM(G107:G110) -> 0
A112: 13.07 | B112: 11. | C112: ΕΠΙΚΑΛΥΨΕΙΣ
A113: 13.08 | B113: 11.01 | C113: Επικεράμωση με κεραμίδια κολυμπητά | D113: Μ2 | E113: 0.081 | G113: 0 | H113: 1
A114: 13.09 | B114: 11.02 | C114: Επικεράμωση με κεραμίδια καρφωτά ή δετά | D114: Μ2 | E114: 0.031 | G114: 0 | H114: 1
A115: 13.10 | B115: 11.03 | C115: Ξύλινος σκελετός στέγης εδραζόμενος | D115: Μ2 | E115: 0.045 | G115: 0 | H115: 1
A116: 13.11 | B116: 11.04 | C116: Ξύλινος σκελετός στέγης αυτοφερόμενος | D116: Μ2 | E116: 0.108 | G116: 0 | H116: 1
A117: 14. | B117: 11.05 | C117: Επικάλυψη με σχιστόπλακες εν ξηρώ | D117: Μ2 | E117: 0.031 | G117: 0 | H117: 1
A118: 14.01 | B118: 11.06 | C118: Επικάλυψη με σχιστόπλακες κολυμπητές | D118: Μ2 | E118: 0.09 | G118: 0 | H118: 1
A119: 14.02 | B119: 11.07 | C119: Επικάλυψη με κυματοειδείς πλάκες αμιαντοτσιμεντου, πλαστικού, μεταλλικές κλπ. | D119: Μ2 | E119: 0.009 | G119: 0 | H119: 1
A120: 14.03 | D120: ΣΥΝΟΛΟ ΕΠΙΚΑΛΥΨΕΙΣ | G120: =SUM(G113:G119) -> 0
A121: 15. | B121: 12. | C121: ΣΤΗΘΑΙΑ
A122: 15.01 | B122: 12.01 | C122: Από οπλισμένο σκυρόδεμα | D122: Μ.Μ. | E122: 0.09 | G122: 0 | H122: 1
D123: ΣΥΝΟΛΟ ΣΤΗΘΑΙΑ | G123: =SUM(G122) -> 0
B124: 13. | C124: ΧΡΩΜΑΤΙΣΜΟΙ
B125: 13.01 | C125: Υδροχρωματισμοί πάσης φύσεως | D125: Μ2 | E125: 0.009 | G125: 0 | H125: 5
B126: 13.02 | C126: Πλαστικά απλά επί τοίχου | D126: Μ2 | E126: 0.027 | G126: 0 | H126: 5
B127: 13.03 | C127: Πλαστικά ή ριπολίνες σπατουλαριστά επί τοίχου | D127: Μ2 | E127: 0.04 | G127: 0 | H127: 5
B128: 13.04 | C128: Επαναχρωματισμός τοίχων με πλαστικά ή ριπολίνες | D128: Μ2 | E128: 0.027 | G128: 0 | H128: 5
B129: 13.05 | C129: Χρωματισμοί ή επαναχρωματισμοί με ακρυλικό ή τσιμεντόχρωμα | D129: Μ2 | E129: 0.027 | G129: 0 | H129: 5
B130: 13.06 | C130: Χρωματισμοί ή επαναχρωματισμοί με ρελιέφ | D130: Μ2 | E130: 0.036 | G130: 0 | H130: 5
B131: 13.07 | C131: Χρωματισμοί ξύλινων επιφανειών | D131: Μ2 | E131: 0.063 | G131: 0 | H131: 5
B132: 13.08 | C132: Χρωματισμοί σιδηρών επιφανειών | D132: Μ2 | E132: 0.072 | G132: 0 | H132: 5
B133: 13.09 | C133: Χρωματισμοί σωλήνων και ξύλινων ή σιδηρών κουπαστών | D133: Μ.Μ. | E133: 0.027 | G133: 0 | H133: 5
B134: 13.10 | C134: Επαναχρωματισμός ξύλινων ή σιδηρών επιφανειών | D134: Μ2 | E134: 0.045 | G134: 0 | H134: 5
B135: 13.11 | C135: Βερνικοχρωματισμοί ξύλινων επιφανειών | D135: Μ2 | E135: 0.135 | G135: 0 | H135: 5
D136: ΣΥΝΟΛΟ ΧΡΩΜΑΤΙΣΜΟΙ | G136: =SUM(G125:G135) -> 0
B137: 14. | C137: ΔΙΑΦΟΡΑ
B138: 14.01 | C138: Κατασκευή τζακιού | D138: τεμ. 1 | E138: 2.7 | G138: 0 | H138: 6
B139: 14.02 | C139: Καμινάδα μετά ικριωμάτων | D139: Μ.Μ. | E139: 0.225 | G139: 0 | H139: 6
B140: 14.03 | C140: Ικριώματα ξύλινα ή σιδηρά | D140: Μ2 | E140: 0.013 | G140: 0 | H140: 6
D141: ΣΥΝΟΛΟ ΔΙΑΦΟΡΑ | G141: =SUM(G138:G140) -> 0
B142: 15. | C142: ΠΕΡΙΒΑΛΛΩΝ ΧΩΡΟΣ
B143: 15.01 | C143: Ο αριθμός ημερομισθίων περιβάλλοντος χώρου προκύπτει με την προμέτρηση των εργασιών και εφαρμογή του παρόντος πίνακος. | D143: ΣΥΝΟΛΟ ΠΕΡ/ΛΩΝ ΧΩΡΟΣ | G143: 0 | H143: 6
C145: ΓΕΝΙΚΟ ΣΥΝΟΛΟ ΗΜΕΡΟΜΙΣΘΙΩΝ | G145: =G143+G141+G123+G120+G111+G105+G99+G94+G80+G71+G63+G54+G39+G21 -> 0
